[Event "4th Memorial Warakomska-B 2020"]
[Site "Suwalki"]
[Date "2020.08.11"]
[Round "7.14"]
[White "Lukasik, Zuzanna"]
[Black "Kaznowska, Weronika"]
[Result "1-0"]
[ECO "B06"]
[WhiteElo "1553"]
[BlackElo "1594"]
[Annotator "NA"]
[PlyCount "87"]
[EventDate "2020.08.06"]
[EventType "swiss"]
[EventCountry "POL"]
[SourceTitle "playchess.com"]
[Source "ChessBase"]
[SourceQuality "1"]
[TimeControl "40/5400+30:1800+30"]

1. e4 {[%emt 0:00:00]} g6 {[%emt 0:00:00]} 2. d4 {[%emt 0:00:00]} Bg7 {[%emt 0:00:00]} 3. Nc3 {[%emt 0:00:00]} c6 {[%emt 0:00:21]} 4. Nf3 {[%emt 0:01:16]} d5 {[%emt 0:00:33]} 5. e5 {[%emt 0:00:20]} Bg4 {[%emt 0:00:46]} 6. Be2 {[%emt 0:01:06]} f6 {[%emt 0:01:32]} 7. exf6 {[%emt 0:03:02]} Nxf6 {[%emt 0:00:53]} 8. O-O {[%emt 0:09:07]} Bxf3 {[%emt 0:02:59]} 9. Bxf3 {[%emt 0:00:07]} O-O {[%emt 0:02:43]} 10. Re1 {[%emt 0:02:24]} Nbd7 {[%emt 0:02:51]} 11. Bg5 {[%emt 0:09:06]} Rf7 {[%emt 0:09:24]} 12. Bg4 {[%emt 0:17:06]} Nxg4 {[%emt 0:02:19]} 13. Qxg4 {[%emt 0:00:11]} Bf6 {[%emt 0:06:00]} 14. Bxf6 {[%emt 0:10:30]} Nxf6 {[%emt 0:02:13]} 15. Qd1 {[%emt 0:04:06]} Qd6 {[%emt 0:03:14]} 16. Re3 {[%emt 0:08:08]} Re8 {[%emt 0:01:38]} 17. Qe2 {[%emt 0:06:29]} Qf4 {[%emt 0:02:31]} 18. Rd3 {[%emt 0:11:07]} Ng4 {[%emt 0:01:47]} 19. Rg3 {[%emt 0:02:20]} Qxf2+ {[%emt 0:01:11]} 20. Qxf2 {[%emt 0:00:09]} Nxf2 {[%emt 0:00:07]} 21. h3 {[%emt 0:02:12]} e5 {[%emt 0:02:37]} 22. Re1 {[%emt 0:02:16]} e4 {[%emt 0:08:35]} 23. Re2 {[%emt 0:01:19]} Ref8 {[%emt 0:00:52]} 24. Rd2 {[%emt 0:02:59]} Rf4 {[%emt 0:12:30]} 25. Re3 {[%emt 0:01:33]} R8f6 {[%emt 0:07:16]} 26. Ree2 {[%emt 0:01:19]} e3 {[%emt 0:01:41]} 27. Rxe3 {[%emt 0:00:11]} Ne4 {[%emt 0:00:43]} 28. Nxe4 {[%emt 0:00:09]} Rxe4 {[%emt 0:00:27]} 29. Rxe4 {[%emt 0:00:20]} dxe4 {[%emt 0:00:05]} 30. Re2 {[%emt 0:00:21]} Re6 {[%emt 0:00:12]} 31. Kf2 {[%emt 0:00:24]} Kf7 {[%emt 0:00:32]} 32. Ke3 {[%emt 0:00:56]} g5 {[%emt 0:00:24]} 33. Rf2+ {[%emt 0:00:07]} Ke7 {[%emt 0:01:17]} 34. Rf5 {[%emt 0:00:17]} h6 {[%emt 0:01:00]} 35. Re5 {[%emt 0:00:12]} Rxe5 {[%emt 0:00:16]} 36. dxe5 {[%emt 0:00:12]} Ke6 {[%emt 0:00:11]} 37. Kxe4 {[%emt 0:00:06]} c5 {[%emt 0:00:23]} 38. c3 {[%emt 0:02:31]} a6 {[%emt 0:01:45]} 39. g3 {[%emt 0:01:56]} b6 {[%emt 0:01:14]} 40. a3 {[%emt 0:00:00]} a5 {[%emt 0:00:00]} 41. b4 {[%emt 0:06:40]} a4 {[%emt 0:03:09]} 42. bxc5 {[%emt 0:00:25]} bxc5 {[%emt 0:00:08]} 43. g4 {[%emt 0:01:18]} c4 {[%emt 0:00:24]} 44. Kd4 1-0

[Event "4th Memorial Warakomska-B 2020"]
[Site "Suwalki"]
[Date "2020.08.06"]
[Round "7.15"]
[White "Jasiulewicz, Dawid"]
[Black "Palejko, Maria"]
[Result "1/2-1/2"]
[ECO "D37"]
[WhiteElo "1374"]
[BlackElo "1218"]
[Annotator "NA"]
[PlyCount "103"]
[EventDate "2020.08.06"]
[EventType "swiss"]
[EventCountry "POL"]
[SourceTitle "playchess.com"]
[Source "ChessBase"]
[SourceQuality "1"]
[TimeControl "40/5400+30:1800+30"]

1. d4 d5 2. Nf3 Nf6 3. c4 e6 4. Nc3 Be7 5. Bf4 O-O 6. e3 c5 7. cxd5 exd5 8. Be2 Nc6 9. O-O Bf5 10. Rc1 cxd4 11. Nxd4 Nxd4 12. Qxd4 Be6 13. Bf3 Qd7 14. Rfd1 Rfd8 15. a3 b5 16. Rd2 Rac8 17. Rcd1 Qc6 18. Qxa7 Rd7 19. Qa5 b4 20. axb4 Qc4 21. Rd4 Qb3 22. Na4 Rdd8 23. R4d3 Qxb4 24. Qxb4 Bxb4 25. h3 h6 26. Nb6 Rc2 27. b3 Bf5 28. e4 Bxe4 29. Bxe4 Nxe4 30. Nxd5 Nxf2 31. Nxb4 Rxd3 32. Rxd3 Nxd3 33. Nxc2 Nxf4 34. Kf2 Kf8 35. Kf3 g5 36. Nd4 h5 37. Ne2 Ne6 38. Ng3 h4 39. Nf5 f6 40. b4 Nc7 41. Nd4 Nd5 42. b5 Ke7 43. Ke4 Kd6 44. Kf5 Kc5 45. b6 Kxb6 46. Nf3 Kc6 47. Nxg5 fxg5 48. Kxg5 Ne3 49. Kxh4 Nxg2+ 50. Kg5 Kd5 51. h4 Nxh4 52. Kf4 1/2-1/2

[Event "4th Memorial Warakomska-B 2020"]
[Site "Suwalki"]
[Date "2020.08.06"]
[Round "7.16"]
[White "Milanowski, Jan"]
[Black "Szewczyk, Malwina"]
[Result "1-0"]
[ECO "D02"]
[WhiteElo "1787"]
[BlackElo "1323"]
[Annotator "NA"]
[PlyCount "111"]
[EventDate "2020.08.06"]
[EventType "swiss"]
[EventCountry "POL"]
[SourceTitle "playchess.com"]
[Source "ChessBase"]
[SourceQuality "1"]
[TimeControl "40/5400+30:1800+30"]

1. d4 Nf6 2. Nf3 g6 3. Bf4 Bg7 4. c3 d5 5. Nbd2 b6 6. h3 Bb7 7. e3 O-O 8. Be2 c5 9. O-O Nc6 10. Bh2 e6 11. Re1 Rc8 12. Bd3 a6 13. Qe2 cxd4 14. exd4 b5 15. b4 Nd7 16. a4 Na7 17. Ra3 bxa4 18. Bxa6 Qb6 19. Bd3 Rfe8 20. Nb1 e5 21. dxe5 Nxe5 22. Nxe5 Bxe5 23. Bxe5 f6 24. Qe3 d4 25. Qxd4 Qxd4 26. cxd4 fxe5 27. dxe5 Nc6 28. Bb5 Rxe5 29. Rxe5 Nxe5 30. Nc3 Nc4 31. Rxa4 Nd6 32. Ra3 Nxb5 33. Nxb5 Rc1+ 34. Kh2 Rb1 35. Ra7 Bc6 36. Nd4 Bd5 37. Rd7 Bc4 38. Rb7 Rd1 39. Nf3 Bd5 40. Rb8+ Kg7 41. Ne5 Rd2 42. Kg3 Re2 43. Ng4 Rb2 44. Ne3 Bc6 45. Rb6 Ba4 46. f3 h6 47. h4 h5 48. Nc4 Re2 49. b5 Re7 50. Nd6 Rd7 51. Kf4 Kf8 52. Rb8+ Ke7 53. Ne4 Bc2 54. b6 Bd3 55. b7 Rc7 56. Re8+ 1-0

[Event "4th Memorial Warakomska-B 2020"]
[Site "Suwalki"]
[Date "2020.08.06"]
[Round "7.17"]
[White "Wysocka, Edyta"]
[Black "Siekanska, Zuzanna"]
[Result "0-1"]
[ECO "B80"]
[WhiteElo "1327"]
[BlackElo "1680"]
[Annotator "NA"]
[PlyCount "66"]
[EventDate "2020.08.06"]
[EventType "swiss"]
[EventCountry "POL"]
[SourceTitle "playchess.com"]
[Source "ChessBase"]
[SourceQuality "1"]
[TimeControl "40/5400+30:1800+30"]

1. e4 c5 2. Nf3 e6 3. d4 cxd4 4. Nxd4 Nf6 5. Nc3 d6 6. Be3 a6 7. a4 Bd7 8. Be2 Nc6 9. Nb3 Na5 10. Nc1 Rc8 11. Bg5 h6 12. Bh4 Qb6 13. Bxf6 gxf6 14. Nd3 Nc4 15. Qc1 Nxb2 16. Qxb2 Qxb2 17. Nxb2 Rxc3 18. Bd3 Rc5 19. f4 Rg8 20. g3 Bc6 21. Rg1 Rh5 22. Rg2 f5 23. Rf2 fxe4 24. Be2 Rc5 25. Kd2 Bg7 26. Rb1 Bc3+ 27. Ke3 d5 28. Bd1 b5 29. axb5 d4+ 30. Ke2 Rxb5 31. Kf1 Rxb2 32. Rc1 e3 33. Re2 Bb5 0-1

[Event "4th Memorial Warakomska-B 2020"]
[Site "Suwalki"]
[Date "2020.08.06"]
[Round "7.18"]
[White "Pieczulis, Blazej"]
[Black "Kolcon, Waclaw"]
[Result "1-0"]
[ECO "D66"]
[WhiteElo "1608"]
[BlackElo "1235"]
[Annotator "NA"]
[PlyCount "41"]
[EventDate "2020.08.06"]
[EventType "swiss"]
[EventCountry "POL"]
[SourceTitle "playchess.com"]
[Source "ChessBase"]
[SourceQuality "1"]
[TimeControl "40/5400+30:1800+30"]

1. d4 d5 2. c4 c6 3. Nc3 Nf6 4. Nf3 a6 5. cxd5 cxd5 6. Bg5 e6 7. e3 Be7 8. Bd3 Nbd7 9. O-O O-O 10. Rc1 b5 11. a4 b4 12. Na2 a5 13. Bb5 Ba6 14. Bxa6 Rxa6 15. Qd3 Rb6 16. b3 Ne8 17. Bxe7 Qxe7 18. Rc2 Nd6 19. Rfc1 Rc8 20. Rc7 Ra8 21. Ne5 1-0

[Event "4th Memorial Warakomska-B 2020"]
[Site "Suwalki"]
[Date "2020.08.06"]
[Round "7.20"]
[White "Dietrich, Grzegorz"]
[Black "Borowik, Karol"]
[Result "0-1"]
[ECO "B90"]
[WhiteElo "1210"]
[BlackElo "1426"]
[Annotator "NA"]
[PlyCount "80"]
[EventDate "2020.08.06"]
[EventType "swiss"]
[EventCountry "POL"]
[SourceTitle "playchess.com"]
[Source "ChessBase"]
[SourceQuality "1"]
[TimeControl "40/5400+30:1800+30"]

1. e4 c5 2. Nf3 d6 3. d4 cxd4 4. Nxd4 Nf6 5. Nc3 a6 6. f3 e5 7. Nb3 Be6 8. Be3 Be7 9. g4 Nbd7 10. Qd2 b5 11. g5 Nh5 12. O-O-O O-O 13. Rg1 Nb6 14. Na5 Rc8 15. Kb1 Qc7 16. Nd5 Bxd5 17. exd5 Nf4 18. Bxf4 exf4 19. Bd3 g6 20. Nc6 Nxd5 21. Nxe7+ Qxe7 22. Rde1 Ne3 23. h4 Qb7 24. h5 Qxf3 25. hxg6 fxg6 26. Rh1 Rc7 27. Rh2 Qd5 28. Reh1 Qxg5 29. Rh6 Rg7 30. Qc3 Qe5 31. Qe1 Ng4 32. Qg1 Nxh6 33. Rxh6 Qe3 34. Qh1 Re7 35. Qd5+ Qe6 36. Be4 Qxd5 37. Bxd5+ Kg7 38. Rh1 Rfe8 39. Kc1 Re1+ 40. Rxe1 Rxe1+ 0-1

[Event "4th Memorial Warakomska-B 2020"]
[Site "Suwalki"]
[Date "2020.08.06"]
[Round "7.21"]
[White "Gladyszewska, Kinga"]
[Black "Towarnicka, Izabela"]
[Result "1-0"]
[ECO "D35"]
[WhiteElo "1312"]
[BlackElo "1397"]
[Annotator "NA"]
[PlyCount "89"]
[EventDate "2020.08.06"]
[EventType "swiss"]
[EventCountry "POL"]
[SourceTitle "playchess.com"]
[Source "ChessBase"]
[SourceQuality "1"]
[TimeControl "40/5400+30:1800+30"]

1. d4 d5 2. Nf3 Nf6 3. c4 e6 4. Nc3 Be7 5. Bf4 c6 6. e3 O-O 7. Bd3 Nbd7 8. cxd5 exd5 9. Rc1 Nh5 10. Be5 Nhf6 11. Bf4 h6 12. h3 b6 13. O-O c5 14. Nb5 Bb7 15. Bc7 Qc8 16. dxc5 bxc5 17. Bg3 Ne8 18. Nc3 Nb6 19. Bc2 Qe6 20. Bb3 Nf6 21. e4 Rfd8 22. Bc7 Rd7 23. Bxb6 axb6 24. exd5 Nxd5 25. Bxd5 Bxd5 26. Re1 Be4 27. Qe2 f5 28. Nd2 Bg5 29. Rcd1 Bxd2 30. Rxd2 Rxd2 31. Qxd2 Qf7 32. Nxe4 fxe4 33. a3 Re8 34. Qc2 Qe6 35. Qc3 Qd5 36. Qe3 b5 37. f3 Qd4 38. Qxd4 cxd4 39. Rxe4 Rxe4 40. fxe4 Kf7 41. Kf2 Kf6 42. Ke2 Ke5 43. Kd3 g6 44. b3 g5 45. a4 1-0

[Event "4th Memorial Warakomska-B 2020"]
[Site "Suwalki"]
[Date "2020.08.06"]
[Round "7.22"]
[White "Kopaczewski, Zbigniew"]
[Black "Dietrich, Pawel"]
[Result "1/2-1/2"]
[ECO "D05"]
[WhiteElo "1488"]
[BlackElo "1162"]
[Annotator "NA"]
[PlyCount "85"]
[EventDate "2020.08.06"]
[EventType "swiss"]
[EventCountry "POL"]
[SourceTitle "playchess.com"]
[Source "ChessBase"]
[SourceQuality "1"]
[TimeControl "40/5400+30:1800+30"]

1. e3 d5 2. Nf3 c5 3. d4 e6 4. c3 Nf6 5. Nbd2 Be7 6. Bd3 O-O 7. Ne5 Nbd7 8. Ndf3 Ne4 9. Nxd7 Qxd7 10. h4 f5 11. Ne5 Qc7 12. f3 Ng3 13. Rh3 Qd8 14. Kd2 Bxh4 15. Kc2 c4 16. Be2 f4 17. exf4 Qf6 18. b3 a5 19. bxc4 a4 20. Bd3 dxc4 21. Bxc4 b5 22. Bd3 b4 23. Qg1 b3+ 24. Kd2 Bb7 25. Kd1 Rfc8 26. Qh2 Nf5 27. g4 Bg3 28. Qe2 Bxf4 29. gxf5 Bxc1 30. Rxc1 exf5 31. Qh2 h6 32. Bc4+ Rxc4 33. Nxc4 Qa6 34. axb3 axb3 35. Qe2 Bd5 36. Nb2 Qg6 37. f4 Ra2 38. Rh2 Qg1+ 39. Qe1 Bf3+ 40. Re2 Bxe2+ 41. Kxe2 Rxb2+ 42. Kd3 Qg2 43. Qe6+ 1/2-1/2

[Event "4th Memorial Warakomska-B 2020"]
[Site "Suwalki"]
[Date "2020.08.06"]
[Round "7.23"]
[White "Borowik, Grzegorz"]
[Black "Pieczulis, Hubert"]
[Result "1-0"]
[ECO "E01"]
[WhiteElo "1089"]
[BlackElo "1486"]
[Annotator "NA"]
[PlyCount "69"]
[EventDate "2020.08.06"]
[EventType "swiss"]
[EventCountry "POL"]
[SourceTitle "playchess.com"]
[Source "ChessBase"]
[SourceQuality "1"]
[TimeControl "40/5400+30:1800+30"]

1. d4 Nf6 2. c4 e6 3. Nc3 d5 4. Nf3 c6 5. g3 Nbd7 6. Bg2 Bd6 7. c5 Bc7 8. O-O e5 9. e3 O-O 10. Nh4 g6 11. f4 exd4 12. exd4 Re8 13. f5 b6 14. Bg5 bxc5 15. fxg6 fxg6 16. Nxd5 Rf8 17. Nxf6+ Nxf6 18. dxc5 Bb7 19. Qb3+ Kg7 20. Qxb7 Qd4+ 21. Kh1 Rac8 22. Bxf6+ Rxf6 23. Rxf6 Qxf6 24. Qxc8 Be5 25. Qxc6 Bxb2 26. Qxf6+ Bxf6 27. Rd1 Kf7 28. Rd7+ Ke6 29. Bh3+ Ke5 30. c6 Bxh4 31. gxh4 h6 32. c7 h5 33. c8=Q a5 34. Qe8+ Kf6 35. Rf7# 1-0

[Event "4th Memorial Warakomska-B 2020"]
[Site "Suwalki"]
[Date "2020.08.06"]
[Round "7.24"]
[White "Pietryk, Joanna"]
[Black "Gladyszewski, Adam"]
[Result "1-0"]
[ECO "B86"]
[WhiteElo "1329"]
[BlackElo "1174"]
[Annotator "NA"]
[PlyCount "72"]
[EventDate "2020.08.06"]
[EventType "swiss"]
[EventCountry "POL"]
[SourceTitle "playchess.com"]
[Source "ChessBase"]
[SourceQuality "1"]
[TimeControl "40/5400+30:1800+30"]

1. e4 c5 2. Nf3 e6 3. d4 cxd4 4. Nxd4 d6 5. Nc3 Be7 6. Be3 a6 7. Bc4 Nf6 8. O-O b5 9. Bd3 Bb7 10. a3 Nc6 11. Nxc6 Bxc6 12. f4 O-O 13. Qf3 Rc8 14. Qh3 e5 15. f5 d5 16. exd5 Bxd5 17. Rad1 Qc7 18. Nxd5 Nxd5 19. f6 g6 20. fxe7 Qxe7 21. Bh6 Rfe8 22. Be4 Nf4 23. Bxf4 exf4 24. Bd3 Qg5 25. Qf3 Re3 26. Qxf4 Qxf4 27. Rxf4 Rce8 28. Rf6 Ra8 29. Kf2 Re7 30. Re1 Rc7 31. Ke2 Kg7 32. Rff1 Raa7 33. Kd2 Rcb7 34. Kc3 a5 35. Kb3 Kg8 36. Be4 Re7 1-0

[Event "4th Memorial Warakomska-B 2020"]
[Site "Suwalki"]
[Date "2020.08.06"]
[Round "7.25"]
[White "Wiszniewska, Gabriela"]
[Black "Wisniewski, Wiktor"]
[Result "0-1"]
[ECO "B06"]
[WhiteElo "1194"]
[BlackElo "1075"]
[Annotator "NA"]
[PlyCount "60"]
[EventDate "2020.08.06"]
[EventType "swiss"]
[EventCountry "POL"]
[SourceTitle "playchess.com"]
[Source "ChessBase"]
[SourceQuality "1"]
[TimeControl "40/5400+30:1800+30"]

1. e4 g6 2. d4 Bg7 3. Nf3 d6 4. Bf4 c5 5. c3 cxd4 6. Nxd4 e5 7. Ne2 exf4 8. Nxf4 Nf6 9. f3 Qb6 10. Qc2 Qe3+ 11. Ne2 O-O 12. Nd2 Nc6 13. O-O-O Be6 14. Kb1 Rac8 15. a3 b5 16. Ng3 b4 17. axb4 Nxb4 18. Qc1 Ng4 19. fxg4 Ba2+ 20. Ka1 Rxc3 21. Nb3 Rxc1+ 22. Nxc1 Qa3 23. Rd2 Bc3 24. Re2 Bc4+ 25. Kb1 Ba2+ 26. Nxa2 Qxa2+ 27. Kc1 Bxb2+ 28. Kd1 Qb3+ 29. Ke1 Nd3+ 30. Kd2 Bc1# 0-1

[Event "4th Memorial Warakomska-B 2020"]
[Site "Suwalki"]
[Date "2020.08.06"]
[Round "7.26"]
[White "Peksa, Zuzanna"]
[Black "Borowik, Monika"]
[Result "0-1"]
[ECO "B96"]
[WhiteElo "1146"]
[BlackElo "1286"]
[Annotator "NA"]
[PlyCount "70"]
[EventDate "2020.08.06"]
[EventType "swiss"]
[EventCountry "POL"]
[SourceTitle "playchess.com"]
[Source "ChessBase"]
[SourceQuality "1"]
[TimeControl "40/5400+30:1800+30"]

1. e4 c5 2. Nf3 d6 3. d4 cxd4 4. Nxd4 Nf6 5. Nc3 a6 6. Bg5 e6 7. f4 Nbd7 8. Qf3 Qc7 9. O-O-O b5 10. Bd3 Bb7 11. Rhe1 Rc8 12. Nd5 Qc5 13. Bxf6 Nxf6 14. Nb3 Qa7 15. Nxf6+ gxf6 16. f5 e5 17. g4 Bh6+ 18. Kb1 Bf4 19. h4 h6 20. Nd2 Ke7 21. Nf1 Qc5 22. Ng3 Bxg3 23. Qxg3 Rhg8 24. Rg1 Qb4 25. Qe3 d5 26. exd5 Bxd5 27. Qa7+ Kf8 28. Qxa6 Ra8 29. Qxb5 Bxa2+ 30. Kc1 Qf4+ 31. Rd2 Bd5 32. Qc5+ Kg7 33. c3 Ra1+ 34. Kc2 Bb3+ 35. Kxb3 Qa4# 0-1

[Event "4th Memorial Warakomska-B 2020"]
[Site "Suwalki"]
[Date "2020.08.06"]
[Round "7.28"]
[White "Zapalowska, Wiktoria"]
[Black "Szczepanska, Jagoda"]
[Result "1-0"]
[ECO "A45"]
[WhiteElo "1250"]
[BlackElo "1015"]
[Annotator "NA"]
[PlyCount "89"]
[EventDate "2020.08.06"]
[EventType "swiss"]
[EventCountry "POL"]
[SourceTitle "playchess.com"]
[Source "ChessBase"]
[SourceQuality "1"]
[TimeControl "40/5400+30:1800+30"]

1. d4 Nf6 2. Bf4 g6 3. e3 a6 4. Nf3 Bg7 5. h3 d5 6. Be2 Nc6 7. O-O O-O 8. Nbd2 Nh5 9. Bh2 f5 10. c3 Bd7 11. Qb3 Bc8 12. a4 Nf6 13. Rfd1 e6 14. Qc2 Qe7 15. b4 Nd8 16. Nb3 Nf7 17. Nc5 Nd6 18. Ne5 b6 19. Ncd3 Bb7 20. Rdb1 Nd7 21. Nxd7 Qxd7 22. Ne5 Qe7 23. b5 a5 24. c4 dxc4 25. Nxc4 Qg5 26. f3 Nxc4 27. Bxc4 Qxe3+ 28. Qf2 Qxf2+ 29. Kxf2 Bxd4+ 30. Kf1 Bxa1 31. Bxe6+ Kg7 32. Rxa1 Kf6 33. Bb3 Rac8 34. Re1 Rfd8 35. Be5+ Kg5 36. f4+ Kh6 37. g4 fxg4 38. hxg4 g5 39. Be6 Ra8 40. Re3 gxf4 41. Rh3+ Kg6 42. Bf5+ Kf7 43. Rxh7+ Ke8 44. Bf6 Rd2 45. Bg6+ 1-0

[Event "4th Memorial Warakomska-B 2020"]
[Site "Suwalki"]
[Date "2020.08.06"]
[Round "7.29"]
[White "Zawal, Krzysztof"]
[Black "Walendykiewicz, Martyna"]
[Result "0-1"]
[ECO "C22"]
[WhiteElo "1105"]
[BlackElo "1181"]
[Annotator "NA"]
[PlyCount "126"]
[EventDate "2020.08.06"]
[EventType "swiss"]
[EventCountry "POL"]
[SourceTitle "playchess.com"]
[Source "ChessBase"]
[SourceQuality "1"]
[TimeControl "40/5400+30:1800+30"]

1. e4 e5 2. d4 exd4 3. Qxd4 Nc6 4. Qe3 d6 5. Nc3 Nf6 6. Bd2 Be6 7. O-O-O a6 8. f4 Be7 9. h3 h6 10. Nf3 Nh7 11. g4 f6 12. Bd3 Nb4 13. a3 Nxd3+ 14. Qxd3 Qd7 15. e5 O-O-O 16. Qe3 Kb8 17. f5 Bg8 18. e6 Qe8 19. Nh4 Nf8 20. Be1 Qc6 21. Bf2 b6 22. Nd5 Re8 23. Kb1 Bh7 24. Nb4 Qb7 25. Qb3 a5 26. Nd5 Qc6 27. Rd3 a4 28. Qb4 Nxe6 29. fxe6 Bxd3 30. cxd3 Qxd5 31. Rc1 Qxd3+ 32. Ka1 Qb3 33. Qd2 Qxe6 34. Qb4 Qb3 35. Qd2 Bd8 36. Rc3 Qf7 37. Nf5 g6 38. Nd4 Kb7 39. Qd3 Rh7 40. Rc4 Qd5 41. Rxa4 b5 42. Rb4 c6 43. Qxg6 Rhe7 44. Nc2 f5 45. Ne3 Qh1+ 46. Ka2 Bb6 47. Qxd6 Bxe3 48. Bxe3 Qd5+ 49. Qxd5 cxd5 50. Rxb5+ Kc6 51. Rb6+ Kc7 52. Bc5 f4 53. Rxh6 Re6 54. Rh7+ Kc6 55. Bd4 Rf8 56. Ra7 Re4 57. Bf2 f3 58. a4 d4 59. Ra6+ Kc5 60. Ka3 Re2 61. Ra5+ Kc4 62. b3+ Kd3 63. Bg1 Rg2 0-1

[Event "4th Memorial Warakomska-B 2020"]
[Site "Suwalki"]
[Date "2020.08.06"]
[Round "7.30"]
[White "Owczarz, Michal"]
[Black "Krzastek, Adrian"]
[Result "0-1"]
[ECO "B72"]
[WhiteElo "1018"]
[BlackElo "1128"]
[Annotator "NA"]
[PlyCount "100"]
[EventDate "2020.08.06"]
[EventType "swiss"]
[EventCountry "POL"]
[SourceTitle "playchess.com"]
[Source "ChessBase"]
[SourceQuality "1"]
[TimeControl "40/5400+30:1800+30"]

1. e4 c5 2. Nf3 d6 3. d4 cxd4 4. Nxd4 Nf6 5. Nc3 g6 6. Bc4 Bg7 7. O-O O-O 8. f4 Nc6 9. Be3 Ng4 10. Nxc6 Nxe3 11. Nxd8 Nxd1 12. Bxf7+ Rxf7 13. Nxf7 Nxc3 14. Nxd6 exd6 15. bxc3 Bxc3 16. Rad1 Bb4 17. c3 Bc5+ 18. Kh1 Bg4 19. Rde1 Re8 20. h3 Be6 21. a4 Bc4 22. Rf3 Bd5 23. Rd3 Bxe4 24. Rdd1 Bc6 25. Rxe8+ Bxe8 26. Re1 Bxa4 27. Re7 Bc6 28. Kh2 d5 29. Re5 d4 30. cxd4 Bxd4 31. Re7 a5 32. Re2 a4 33. Rd2 Bc5 34. Rc2 Bf8 35. g4 a3 36. Rd2 b5 37. f5 gxf5 38. gxf5 Be4 39. f6 Kf7 40. h4 Kxf6 41. Rf2+ Kg7 42. h5 Bd6+ 43. Kh3 b4 44. h6+ Kg6 45. Kg4 b3 46. Rd2 Bf5+ 47. Kf3 Be5 48. Rd5 Bf6 49. Rd2 b2 50. Rg2+ Bg5 0-1

[Event "4th Memorial Warakomska-B 2020"]
[Site "Suwalki"]
[Date "2020.08.06"]
[Round "7.31"]
[White "Kaznowska, Kinga"]
[Black "Wardziak, Ewa"]
[Result "1-0"]
[ECO "C68"]
[WhiteElo "1007"]
[BlackElo "1280"]
[Annotator "NA"]
[PlyCount "129"]
[EventDate "2020.08.06"]
[EventType "swiss"]
[EventCountry "POL"]
[SourceTitle "playchess.com"]
[Source "ChessBase"]
[SourceQuality "1"]
[TimeControl "40/5400+30:1800+30"]

1. e4 e5 2. Nf3 Nc6 3. Bb5 Nf6 4. d3 a6 5. Bxc6 dxc6 6. Nxe5 Bd6 7. Nf3 O-O 8. Bg5 h6 9. Bh4 Re8 10. Nbd2 b5 11. Nb3 Bg4 12. h3 Bxf3 13. Qxf3 c5 14. O-O c4 15. dxc4 bxc4 16. Bxf6 Qxf6 17. Qxf6 gxf6 18. Nd2 Bf8 19. c3 Rab8 20. Rab1 Rbd8 21. Rfd1 h5 22. Kf1 Bh6 23. Nxc4 Rxd1+ 24. Rxd1 Rxe4 25. Rd4 Re6 26. f3 Kf8 27. Rd5 Bg5 28. Rc5 Bh4 29. Kg1 Bg3 30. Nd2 h4 31. Ne4 Ke7 32. Rd5 Kf8 33. Kf1 Kg7 34. Nxg3 hxg3 35. Rd3 c5 36. f4 Rb6 37. Rxg3+ Kf8 38. b3 a5 39. Re3 a4 40. c4 a3 41. Ke2 f5 42. Re5 Rg6 43. Kf2 Rd6 44. Rd5 Rc6 45. Rxf5 Ke7 46. Rd5 Ke6 47. g3 Kf6 48. h4 Kg6 49. g4 Rc8 50. Kf3 Rh8 51. h5+ Kg7 52. Rxc5 Rd8 53. Ra5 Rd3+ 54. Ke4 Rg3 55. g5 Kh7 56. Rxa3 Rg1 57. Ra7 Kg7 58. Kf5 Rg2 59. g6 Kh8 60. gxf7 Kg7 61. h6+ Kf8 62. h7 Rh2 63. Ra8+ Kxf7 64. h8=Q Rxh8 65. Rxh8 1-0

[Event "4th Memorial Warakomska-B 2020"]
[Site "Suwalki"]
[Date "2020.08.06"]
[Round "7.33"]
[White "Peksa, Piotr"]
[Black "Zalega, Joanna"]
[Result "1/2-1/2"]
[ECO "E07"]
[WhiteElo "1018"]
[BlackElo "1127"]
[Annotator "NA"]
[PlyCount "60"]
[EventDate "2020.08.06"]
[EventType "swiss"]
[EventCountry "POL"]
[SourceTitle "playchess.com"]
[Source "ChessBase"]
[SourceQuality "1"]
[TimeControl "40/5400+30:1800+30"]

1. c4 Nf6 2. Nc3 e6 3. g3 d5 4. Bg2 Be7 5. cxd5 exd5 6. d4 c6 7. Nf3 Nbd7 8. O-O O-O 9. Bg5 h6 10. Bxf6 Nxf6 11. Re1 Bf5 12. a3 Re8 13. Nd2 Qb6 14. Nb3 Rad8 15. Na4 Qb5 16. Nc3 Qb6 17. Na4 Qc7 18. Nc3 Bd6 19. e3 Ne4 20. Nxe4 Bxe4 21. Rc1 Qb6 22. Bxe4 dxe4 23. Qc2 f5 24. Re2 g6 25. Kg2 Qb5 26. Rd2 Re7 27. Rcd1 Red7 28. h3 Be7 29. Kh2 Kg7 30. Kg2 b6 1/2-1/2